fUSD/lending_fUSD_20250807
["ID","MTS","AMOUNT","RATE_DAILY","PERIOD"]
[377862900,1754584243112,-151.0,0.00018986,2]
[377862902,1754584243122,-152.642329,0.00018986,2]
[377862904,1754584243131,-151.0,0.00018986,2]
[377862906,1754584243140,-151.0,0.00018986,2]
[377862908,1754584243150,-151.0,0.00018986,2]
[377862910,1754584243160,-151.0,0.00018986,2]
[377862912,1754584243169,-151.0,0.00018986,2]
[377862914,1754584243180,-151.0,0.00018986,2]
[377862916,1754584243190,-151.0,0.00018986,2]
[377862918,1754584243199,-151.0,0.00018986,2]
[377862920,1754584243209,-153.873206,0.00018986,2]
[377862923,1754584243220,-205.599942,0.00018986,2]
[377862924,1754584243231,-205.599942,0.00018986,2]
[377862927,1754584243240,-205.599942,0.00018986,2]
[377862929,1754584243251,-205.599942,0.00018986,2]
[377862931,1754584243260,-205.599942,0.00018986,2]
[377862933,1754584243270,-205.599942,0.00018986,2]
[377862935,1754584243279,-191.343934,0.00018986,2]
[377862937,1754584243290,-191.343934,0.00018986,2]
[377862939,1754584243300,-191.343934,0.00018986,2]
[377862941,1754584243309,-151.0,0.00018986,2]
[377862943,1754584243319,-154.564256,0.00018986,2]
[377862945,1754584243328,-191.343934,0.00018986,2]
[377862947,1754584243338,-191.343934,0.00018986,2]
[377862949,1754584243347,-191.343934,0.00018986,2]
[377862951,1754584243357,-151.0,0.00018986,2]
[377862953,1754584243366,-151.0,0.00018986,2]
[377862955,1754584243376,-151.0,0.00018986,2]
[377862957,1754584243386,-244.147265,0.00018986,2]
[377862959,1754584243396,-151.0,0.00018986,2]
[377862961,1754584243406,-151.0,0.00018986,2]
[377862963,1754584243415,-151.0,0.00018986,2]
[377862965,1754584243426,-191.172792,0.00018986,2]
[377862968,1754584243436,-151.909203,0.00018986,2]
[377862970,1754584243445,-151.0,0.00018986,2]
[377862972,1754584243458,-151.0,0.00018986,2]
[377862974,1754584243467,-151.0,0.00018986,2]
[377862976,1754584243476,-151.0,0.00018986,2]
[377862978,1754584243486,-151.0,0.00018986,2]
[377862980,1754584243495,-151.0,0.00018986,2]
[377862982,1754584243504,-243.84374,0.00018986,2]
[377862984,1754584243513,-151.0,0.00018986,2]
[377862987,1754584243523,-151.0,0.00018986,2]
[377862990,1754584243535,-151.0,0.00018986,2]
[377862993,1754584243544,-151.0,0.00018986,2]
[377862995,1754584243554,-346.651545,0.00018986,2]
[377862997,1754584243563,-151.0,0.00018986,2]
[377862999,1754584243573,-346.651545,0.00018986,2]
[377863001,1754584243583,-206.209934,0.00018986,2]
[377863003,1754584243592,-151.0,0.00018986,2]
[377863005,1754584243602,-151.0,0.00018986,2]
[377863007,1754584243611,-151.0,0.00018986,2]
[377863009,1754584243620,-151.0,0.00018986,2]
[377863011,1754584243629,-151.0,0.00018986,2]
[377863013,1754584243639,-151.0,0.00018986,2]
[377863015,1754584243648,-151.0,0.00018986,2]
[377863017,1754584243658,-151.0,0.00018986,2]
[377863019,1754584243667,-300.03734044,0.00018986,2]
[377863021,1754584243678,-151.0,0.00018986,2]
[377863023,1754584243688,-151.0,0.00018986,2]
[377863025,1754584243697,-151.0,0.00018986,2]
[377863027,1754584243707,-196.708939,0.00018986,2]
[377863029,1754584243716,-196.708939,0.00018986,2]
[377863032,1754584243726,-151.0,0.00018986,2]
[377863034,1754584243736,-189.38414,0.00018986,2]
[377863036,1754584243746,-151.0,0.00018986,2]
[377863038,1754584243755,-500.0,0.00018986,2]
[377863040,1754584243765,-500.0,0.00018986,2]
[377863042,1754584243775,-500.0,0.00018986,2]
[377863044,1754584243786,-19188.2453333,0.00018986,2]
[377863046,1754584243795,-18635.877,0.00018986,2]
[377863048,1754584243805,-17716.6149999,0.00018986,2]
[377863050,1754584243814,-17716.6149999,0.00018986,2]
[377863052,1754584243823,-170.0,0.00018986,2]
[377863054,1754584243833,-151.0,0.00018988,2]
[377863056,1754584243842,-151.0,0.00018988,2]
[377863058,1754584243851,-153.26032952,0.00018988,2]
[377863060,1754584243860,-150.0,0.00018988,2]
[377863062,1754584243870,-150.0,0.00018988,2]
[377863064,1754584243879,-151.00427788,0.00018988,2]
[377863066,1754584243889,-150.0,0.00018988,2]
[377863068,1754584243899,-150.0,0.00018988,2]
[377863070,1754584243908,-150.0,0.00018988,2]
[377863072,1754584243917,-150.0,0.00018988,2]
[377863074,1754584243927,-150.0,0.00018988,2]
[377863076,1754584243936,-200.0,0.00018988,2]
[377863078,1754584243946,-500.0,0.00018988,2]
[377863080,1754584243955,-200.0,0.00018988,2]
[377863082,1754584243964,-200.0,0.00018988,2]
[377863084,1754584243973,-150.0,0.00018988,2]
[377863086,1754584243983,-200.0,0.00018988,2]
[377863088,1754584243992,-150.0,0.00018988,2]
[377863090,1754584244002,-346.651545,0.00018989,2]
[377863092,1754584244011,-346.651545,0.00018989,2]
[377863094,1754584244020,-3000.0,0.0001899,2]
[377863096,1754584244029,-185.09489187,0.0001899,2]
[377863098,1754584244039,-151.0,0.00018993,2]
[377863100,1754584244048,-157.015172,0.00018993,2]
[377863102,1754584244058,-1000.0,0.00018993,2]
[377863105,1754584244067,-1000.0,0.00018993,2]
[377863106,1754584244077,-1000.0,0.00018993,2]
[377863108,1754584244086,-1000.0,0.00018993,2]
[377863110,1754584244095,-1000.0,0.00018993,2]
[377863113,1754584244105,-1000.0,0.00018993,2]
[377863115,1754584244115,-1000.0,0.00018993,2]
[377863117,1754584244125,-1000.0,0.00018993,2]
[377863119,1754584244134,-1000.0,0.00018993,2]
[377863121,1754584244144,-1000.0,0.00018993,2]
[377863123,1754584244153,-1000.0,0.00018993,2]
[377863124,1754584244163,-1000.0,0.00018993,2]
[377863126,1754584244173,-1000.0,0.00018993,2]
[377863128,1754584244183,-1000.0,0.00018993,2]
[377863130,1754584244192,-319.426,0.00018993,2]
[377863132,1754584244202,-1000.0,0.00018999,2]
[377863135,1754584244212,-326.59468611,0.00018999,2]
[377863137,1754584244222,-300.0,0.00018999,2]
[377863139,1754584244231,-300.0,0.00018999,2]
[377863141,1754584244240,-14050.90962322,0.00019,2]
[377863143,1754584244250,-124100.15803842,0.00019,2]
[377863556,1754584248719,-150.0,0.00018826,2]
[377863558,1754584248728,-1114.07292215,0.00019,2]
[377863785,1754584399977,150.0,0.000168,2]
[377863786,1754584402550,150.0,0.0001798,2]
[377863790,1754584486760,515.0,0.00017142,2]
[377863798,1754584586326,2006.0,0.00018,2]
[377863799,1754584590806,41586.81515539,0.00017987,2]
[377863800,1754584590830,11571.0860252,0.00017987,2]
[377863801,1754584590851,15000.0,0.00017987,2]
[377863802,1754584590872,15000.0,0.00017987,2]
[377863803,1754584590893,12412.06881941,0.00017987,2]
[377863806,1754584628914,150.0,0.00017921,2]
[377863807,1754584677614,1000.0,0.00017908,2]
[377863810,1754584698848,175.0,0.00017906,7]
[377863811,1754584733875,1437.93118059,0.00017906,2]
[377863812,1754584733897,770.50881941,0.00017906,2]
[377863813,1754584746657,184.38125242,0.00017958,2]
[377863818,1754584901607,6788.89,0.00017877,2]
[377863819,1754584920252,150.0,0.000168,2]
[377863820,1754584920355,150.0,0.0001798,2]
[377863822,1754584965677,605.73,0.00017837,2]
[377863823,1754584992118,250.0,0.00017837,2]
[377863826,1754585090267,232.67,0.00013699,2]
[377863827,1754585155887,460.58,0.00015068,2]
[377863828,1754585156130,460.58,0.00016655,2]
[377863829,1754585175320,666.0,0.00017799,3]
[377863831,1754585205790,515.0,0.00018,2]
[377863833,1754585281623,2205.77,0.00017784,2]
[377863834,1754585282770,1832.16,0.00017784,2]
[377863860,1754585321714,393.72992817,0.00018,2]
[377863861,1754585321739,9753.50003734,0.00018,2]
[377863862,1754585341131,200.0,0.00017793,2]
[377863863,1754585363819,587.51,0.000178,2]
[377863864,1754585366427,1769.99,0.000178,2]
[377863893,1754585432932,-162.27,0.00018023,2]
[377863894,1754585432942,-171.06,0.00018032,2]
[377863895,1754585432952,-300.0,0.00018044,2]
[377863896,1754585432961,-300.0,0.00018044,2]
[377863897,1754585432971,-300.0,0.00018044,2]
[377863898,1754585432980,-1200.0,0.00018044,2]
[377863899,1754585432989,-23900.0,0.00018045,2]
[377863900,1754585432999,-2431.62,0.00018167,2]
[377863901,1754585433009,-570.36,0.00018168,2]
[377863902,1754585433019,-460.58,0.00018242,2]
[377863903,1754585433028,-167.64,0.00018328,2]
[377863904,1754585433038,-209.40437685,0.00018345,2]
[377863905,1754585433047,-600.0,0.00018345,2]
[377863906,1754585433057,-4496.15507419,0.00018345,2]
[377863907,1754585433067,-160.0,0.00018345,2]
[377863908,1754585433077,-267.46074303,0.00018345,2]
[377863909,1754585433087,-500.0,0.00018345,2]
[377863910,1754585433096,-600.0,0.00018345,2]
[377863911,1754585433107,-600.0,0.00018345,2]
[377863912,1754585433117,-600.0,0.00018345,2]
[377863913,1754585433127,-600.0,0.00018345,2]
[377863914,1754585433137,-600.0,0.00018345,2]
[377863915,1754585433147,-600.0,0.00018345,2]
[377863916,1754585433156,-600.0,0.00018345,2]
[377863917,1754585433166,-600.0,0.00018345,2]
[377863918,1754585433176,-349.36740987,0.00018345,2]
[377863919,1754585433185,-151.0,0.00018345,2]
[377863920,1754585433195,-250.0,0.00018345,2]
[377863921,1754585433205,-250.0,0.00018345,2]
[377863922,1754585433215,-250.0,0.00018345,2]
[377863923,1754585433226,-188.42611473,0.00018345,2]
[377863924,1754585433235,-401.19111454,0.00018345,2]
[377863925,1754585433245,-500.0,0.00018345,2]
[377863926,1754585433255,-500.0,0.00018345,2]
[377863927,1754585433264,-500.0,0.00018345,2]
[377863928,1754585433274,-500.0,0.00018345,2]
[377863929,1754585433284,-121.53531496,0.00018345,2]
[377863930,1754585433296,-378.46468504,0.00018345,2]
[377863931,1754585433306,-298.62792179,0.00018345,2]
[377863932,1754585433316,-1026.83771482,0.00018356,2]
[377863933,1754585433329,-486.86,0.00018356,2]
[377863934,1754585433345,-29723.32228518,0.00018356,2]
[377863935,1754585433356,-4645.98597868,0.000184,2]
[377863936,1754585433366,-500.0,0.000184,2]
[377863937,1754585433375,-151.11,0.00018471,2]
[377863938,1754585433385,-841.0,0.00018556,2]
[377863939,1754585433395,-537.24,0.000186,2]
[377863940,1754585433405,-841.0,0.000186,2]
[377863941,1754585433415,-600.0,0.00018636,2]
[377863942,1754585433424,-600.0,0.00018636,2]
[377863943,1754585433434,-600.0,0.00018636,2]
[377863944,1754585433443,-599.28,0.00018636,2]
[377863945,1754585433453,-841.0,0.000187,2]
[377863946,1754585433462,-163.83,0.000187,2]
[377863947,1754585433472,-1000.0,0.00018729,2]
[377863948,1754585433482,-1000.0,0.0001877,2]
[377863949,1754585433492,-841.0,0.00018818,2]
[377863950,1754585433502,-500.0,0.00018822,2]
[377863951,1754585433511,-1220.39,0.00018858,2]
[377863952,1754585433520,-177.724,0.00018858,2]
[377863953,1754585433530,-150.0,0.00018883,2]
[377863954,1754585433539,-274.65891725,0.00018884,2]
[377863955,1754585433549,-2808.62790015,0.00018885,2]
[377863956,1754585433559,-205.21151766,0.000189,2]
[377863957,1754585433568,-5000.0,0.000189,2]
[377863958,1754585433578,-7654.3015,0.000189,2]
[377863959,1754585433587,-217.95284628,0.000189,2]
[377863960,1754585433597,-163.83,0.00018901,2]
[377863961,1754585433606,-150.0,0.00018901,2]
[377863962,1754585433616,-19435.33559282,0.00018908,2]
[377863963,1754585433626,-631.32361229,0.00018936,2]
[377863964,1754585433635,-2808.62790013,0.00018937,2]
[377863965,1754585433645,-500.0,0.00018973,2]
[377863966,1754585433655,-500.0,0.00018973,2]
[377863967,1754585433664,-506.63647082,0.00018973,2]
[377863968,1754585433673,-500.0,0.00018973,2]
[377863969,1754585433682,-500.0,0.00018973,2]
[377863970,1754585433692,-500.0,0.00018973,2]
[377863971,1754585433701,-1963.995,0.00018985,2]
[377863972,1754585433711,-1000.0,0.00018985,2]
[377863973,1754585433720,-1000.0,0.00018985,2]
[377863974,1754585433730,-16.58229501,0.00018985,2]
[377863975,1754585433760,-983.41770499,0.00018985,2]
[377863976,1754585433772,-235.3007384,0.00018985,2]
[377863977,1754585433784,-730.83033,0.00018985,2]
[377863978,1754585433796,-33.8689316,0.00018985,2]
[377863979,1754585433808,-507.42241217,0.00018985,2]
[377863980,1754585433827,-492.57758783,0.00018985,2]
[377863981,1754585433838,-1000.0,0.00018985,2]
[377863982,1754585433851,-1000.0,0.00018985,2]
[377863983,1754585433866,-1000.0,0.00018985,2]
[377863984,1754585433877,-1000.0,0.00018985,2]
[377863985,1754585433887,-993.972,0.00018985,2]
[377863986,1754585433898,-500.0,0.00018986,2]
[377863987,1754585433908,-500.0,0.00018986,2]
[377863988,1754585433918,-269.0,0.00018988,2]
[377863989,1754585433928,-150.0,0.00018988,2]
[377863990,1754585433938,-200.0,0.00018988,2]
[377863991,1754585433948,-150.0,0.00018988,2]
[377863992,1754585433958,-150.0,0.00018988,2]
[377863993,1754585433967,-150.0,0.00018988,2]
[377863994,1754585433977,-2808.62790013,0.00018989,2]
[377863995,1754585433987,-185.09489187,0.0001899,2]
[377863996,1754585433996,-228.61628027,0.00018994,2]
[377863997,1754585434006,-19878.8645349,0.00018995,2]
[377863998,1754585434016,-1302.5761186,0.00018995,2]
[377863999,1754585434026,-3897.1901627,0.00018995,2]
[377864000,1754585434035,-64.8213331,0.00018995,2]
[377864001,1754585434050,-3794.41871993,0.00018995,2]
[377864002,1754585434062,-22128.07760123,0.00018995,2]
[377864003,1754585434094,-1297.97401234,0.00018995,2]
[377864004,1754585434104,-24379.69294766,0.00018995,2]
[377864013,1754585437822,-508.58479256,0.00018995,2]
[377864015,1754585437877,-250.0,0.00018995,2]
[377864016,1754585437889,-259.80992006,0.00018995,2]
[377864017,1754585437901,-669.15342245,0.00018995,2]
[377864018,1754585437985,-1218.05058387,0.00018995,2]
[377864019,1754585437995,-7092.23210845,0.00018995,2]
[377864020,1754585438007,-2274.60122495,0.00018995,2]
[377864021,1754585438016,-416.11060906,0.00018995,2]
[377864022,1754585438027,-4283.7897216,0.00018995,2]
[377864023,1754585438038,-5020.50886454,0.00018995,2]
[377864024,1754585438051,-11976.8003662,0.00018995,2]
[377864025,1754585438062,-1830.13484233,0.00018995,2]
[377864026,1754585438082,-1233.00416372,0.00018995,2]
[377864027,1754585438148,-1637.88743245,0.00018995,2]
[377864028,1754585438158,-374.30454632,0.00018999,2]
[377864029,1754585438168,-500.0,0.00018999,2]
[377864030,1754585438178,-361.52634386,0.00018999,2]
[377864031,1754585438188,-300.0,0.00018999,2]
[377864032,1754585438197,-1488.2464759,0.00019,2]
[377864033,1754585438209,-17385.91583104,0.00019,2]
[377864034,1754585438219,-88777.45989285,0.00019,2]
[377864035,1754585438230,-9616.06621539,0.00019,2]
[377864036,1754585438242,-23754.03512613,0.00019,2]
[377864037,1754585438254,-2080.0,0.00019,2]
[377864046,1754585438667,-7051.21322555,0.00019,2]
[377864050,1754585438693,-3805.71052002,0.00019,2]
[377864052,1754585438704,-2839.0,0.00019,2]
[377864055,1754585438723,-36093.40970214,0.00019,2]
[377864060,1754585438763,150.0,0.000168,2]
[377864082,1754585438969,150.0,0.0001798,2]
[377864167,1754585439898,-2459.9999997,0.00019,2]
[377864179,1754585440006,-15324.70036894,0.00019,2]
[377864182,1754585440018,-18964.44499999,0.00019,2]
[377864187,1754585440061,-604.0,0.00019,2]
[377864189,1754585440072,-138877.35155121,0.00019,2]
[377864195,1754585440118,-4760.42846481,0.00019,2]
[377864201,1754585440171,-3598.55462722,0.00019,2]
[377864529,1754585443450,-150.0,0.00018889,2]
[377864531,1754585443459,-7451.76723572,0.000189,2]
[377864533,1754585443468,-150.0,0.00018993,2]
[377864535,1754585443477,-87498.23276428,0.00019,2]
[377864538,1754585443496,-72747.48221081,0.00019,2]
[377864540,1754585443508,-673.3310658,0.00019,2]
[377864542,1754585443520,-2901.75,0.00019,2]
[377864559,1754585443668,-157393.68938262,0.00019,2]
[377864561,1754585443677,-285.85908471,0.00019,2]
[377864563,1754585443686,-222620.45153307,0.00019,2]
[377864572,1754585443764,-303.867,0.00019,2]
[377864575,1754585443782,-84508.96161572,0.00019,2]
[377864576,1754585443793,-1232.99974895,0.00019,2]
[377864782,1754585446281,-1041.2857044,0.00019,2]
[377864800,1754585446442,-956.15868541,0.00019,2]
[377864807,1754585446497,-3743.97041244,0.00019,2]
[377864809,1754585446508,-232874.99999998,0.00019,2]
[377866425,1754585505637,511.0,0.00018,2]
[377866435,1754585560537,150.0,0.0001794,2]
[377866440,1754585608624,787.79577208,0.00018006,2]
[377866441,1754585610250,167.28,0.00017933,2]
[377866442,1754585612326,538.39,0.00017933,2]
[377866443,1754585640162,200.0,0.00017936,2]
[377866444,1754585661119,-2744.16396544,0.000184,2]
[377866445,1754585661140,-2744.16396542,0.0001845,2]
[377866446,1754585661162,-183.10594483,0.000185,2]
[377866447,1754585661183,-2744.16396542,0.000185,2]
[377866448,1754585661205,-700.0,0.000185,6]
[377866449,1754585661228,-1500.0,0.000186,6]
[377866450,1754585661250,-1000.0,0.0001863,2]
[377866451,1754585661273,-226.48487838,0.00018672,2]
[377866452,1754585661294,-2300.0,0.000187,6]
[377866453,1754585661317,-150.0,0.00018743,2]
[377866454,1754585661340,-150.0,0.00018769,2]
[377866455,1754585661362,-300.0,0.00018799,2]
[377866456,1754585661383,-1722.29802748,0.000188,2]
[377866457,1754585661403,-901.9219414,0.000188,2]
[377866458,1754585661425,-3100.0,0.000188,6]
[377866459,1754585661447,-13.69731163,0.0001881,2]
[377866461,1754585700410,34.53419058,0.00018004,2]
[377866462,1754585700431,1038.30580942,0.00018004,2]
[377866463,1754585744497,175.0,0.00017977,7]
[377866464,1754585757926,335.07,0.00017975,2]
[377866465,1754585783162,1000.0,0.00017925,2]
[377866466,1754585823138,213.76,0.00017921,2]
[377866469,1754585837592,1050.08,0.00017921,2]
[377866470,1754585883151,1000.0,0.00017926,2]
[377866475,1754585948487,10362.78419058,0.00017918,2]
[377866476,1754585948509,13356.38580942,0.00017918,2]
[377866477,1754585956935,150.0,0.000168,2]
[377866478,1754585957339,150.0,0.0001798,2]
[377866479,1754585959729,200.80165,0.00018,2]
[377866486,1754586054977,250.0,0.00017922,2]
[377866487,1754586078499,283.02,0.00017922,2]
[377866490,1754586125654,1000.0,0.00018283,4]
[377866491,1754586141643,609.79254058,0.00017914,2]
[377866492,1754586141665,1157.13745942,0.00017914,2]
[377866493,1754586174177,150.0,0.00017916,2]
[377866494,1754586192411,987.99,0.00017916,2]
[377866496,1754586243823,412.51,0.00017908,3]
[377866497,1754586245080,1000.0,0.00018262,4]
[377866498,1754586245159,1000.0,0.00018424,4]
[377866509,1754586288190,515.0,0.000178,2]
[377866510,1754586290788,228.89,0.00013699,2]
[377866512,1754586311925,150.20785812,0.00017088,2]
[377866513,1754586314199,150.0,0.00017088,2]
[377866514,1754586314433,150.0,0.00017088,2]
[377866515,1754586320655,150.0,0.00017088,2]
[377866516,1754586320902,150.0,0.00017088,2]
[377866517,1754586329035,200.0,0.00017906,2]
[377866518,1754586334349,150.0,0.00017088,2]
[377866519,1754586336626,150.0,0.00017088,2]
[377866520,1754586362327,1000.0,0.00018051,4]
[377866522,1754586411229,176.21615274,0.0001797,2]
[377866523,1754586411400,339.0,0.00017908,2]
[377866524,1754586411631,339.0,0.00017917,2]
[377866526,1754586412221,339.0,0.00017926,2]
[377866527,1754586412488,339.0,0.00017936,2]
[377866528,1754586412662,339.0,0.00017945,2]
[377866529,1754586412894,339.0,0.00017955,2]
[377866530,1754586413129,339.0,0.00017964,2]
[377866531,1754586413408,339.0,0.00017974,2]
[377866532,1754586414572,339.0,0.00017983,2]
[377866533,1754586414640,339.0,0.00017992,2]
[377866534,1754586414708,339.0,0.00018002,2]
[377866537,1754586458305,558.5,0.00015068,2]
[377866538,1754586458391,558.5,0.00016651,2]
[377866539,1754586475433,150.0,0.000168,2]
[377866540,1754586475784,150.0,0.0001798,2]
[377866543,1754586519376,4174.48,0.00017685,2]
[377866562,1754586633974,-339.0,0.00018011,2]
[377866563,1754586633983,-339.0,0.00018021,2]
[377866564,1754586633993,-339.0,0.0001803,2]
[377866565,1754586634003,-150.0,0.00018037,2]
[377866566,1754586634014,-150.0,0.00018037,2]
[377866567,1754586634023,-339.0,0.0001804,2]
[377866568,1754586634033,-339.0,0.00018049,2]
[377866569,1754586634043,-850.0,0.00018058,2]
[377866570,1754586634053,-249.0,0.00018058,2]
[377866571,1754586634063,-300.0,0.00018058,2]
[377866572,1754586634072,-1200.0,0.00018058,2]
[377866573,1754586634082,-339.0,0.00018058,2]
[377866574,1754586634094,-151.0,0.00018059,2]
[377866575,1754586634104,-4496.15507419,0.00018059,2]
[377866576,1754586634114,-600.0,0.00018059,2]
[377866577,1754586634123,-200.0,0.00018059,2]
[377866578,1754586634133,-151.0,0.00018059,2]
[377866579,1754586634142,-401.19111454,0.00018059,2]
[377866580,1754586634152,-151.0,0.00018059,2]
[377866581,1754586634162,-332.76300145,0.00018059,2]
[377866582,1754586634171,-500.0,0.00018059,2]
[377866583,1754586634180,-500.0,0.00018059,2]
[377866584,1754586634191,-151.0,0.00018059,2]
[377866585,1754586634203,-160.0,0.00018059,2]
[377866586,1754586634212,-500.0,0.00018059,2]
[377866587,1754586634221,-500.0,0.00018059,2]
[377866588,1754586634231,-151.0,0.00018059,2]
[377866589,1754586634241,-545.76809848,0.00018059,2]
[377866590,1754586634257,-151.0,0.00018059,2]
[377866591,1754586634273,-151.0,0.00018059,2]
[377866592,1754586634282,-151.0,0.00018059,2]
[377866593,1754586634291,-151.0,0.00018059,2]
[377866594,1754586634301,-151.0,0.00018059,2]
[377866595,1754586634310,-92.39974842,0.00018059,2]
[377866596,1754586634340,-58.60025158,0.00018059,2]
[377866597,1754586634349,-151.0,0.00018059,2]
[377866598,1754586634359,-151.0,0.00018059,2]
[377866599,1754586634368,-600.0,0.00018059,2]
[377866600,1754586634377,-151.0,0.00018059,2]
[377866601,1754586634386,-388.09207441,0.00018059,2]
[377866602,1754586634397,-211.90792559,0.00018059,2]
[377866603,1754586634407,-156.61204964,0.00018059,2]
[377866604,1754586634416,-600.0,0.00018059,2]
[377866605,1754586634425,-600.0,0.00018059,2]
[377866606,1754586634434,-500.0,0.00018059,2]
[377866607,1754586634443,-494.19571041,0.00018059,2]
[377866608,1754586634481,-105.80428959,0.00018059,2]
[377866609,1754586634491,-500.0,0.00018059,2]
[377866610,1754586634501,-600.0,0.00018059,2]
[377866611,1754586634511,-500.0,0.00018059,2]
[377866612,1754586634520,-600.0,0.00018059,2]
[377866613,1754586634529,-405.07300067,0.00018059,2]
[377866614,1754586637204,-140.36290792,0.00018059,2]
[377866615,1754586637214,-600.0,0.00018059,2]
[377866616,1754586637223,-267.46074303,0.00018059,2]
[377866617,1754586637235,-600.0,0.00018059,2]
[377866618,1754586637244,-600.0,0.00018059,2]
[377866619,1754586637254,-500.0,0.00018059,2]
[377866620,1754586637263,-472.2264232,0.00018059,2]
[377866621,1754586637273,-250.0,0.00018059,2]
[377866622,1754586637283,-151.0,0.00018059,2]
[377866623,1754586637293,-250.0,0.00018059,2]
[377866624,1754586637303,-250.0,0.00018059,2]
[377866625,1754586637312,-250.0,0.00018059,2]
[377866626,1754586637321,-250.0,0.00018059,2]
[377866627,1754586637331,-250.0,0.00018059,2]
[377866628,1754586637341,-250.0,0.00018059,2]
[377866629,1754586637350,-471.60256514,0.00018059,2]
[377866630,1754586637360,-250.0,0.00018059,2]
[377866632,1754586637371,-200.0,0.00018059,2]
[377866634,1754586637380,-3510.84,0.00018066,2]
[377866636,1754586637390,-339.0,0.00018068,2]
[377866638,1754586637399,-5000.0,0.0001807,2]
[377866639,1754586637409,-339.0,0.00018077,2]
[377866640,1754586637418,-339.0,0.00018087,2]
[377866641,1754586637427,-3056.41348891,0.00018114,2]
[377866642,1754586637437,-500.0,0.00018114,2]
[377866643,1754586637446,-500.0,0.00018169,2]
[377866644,1754586637455,-500.0,0.00018224,2]
[377866645,1754586637465,-558.5,0.00018234,2]
[377866648,1754586637475,-500.0,0.00018279,2]
[377866650,1754586637484,-500.0,0.00018334,2]
[377866652,1754586637493,-176.21615273,0.00018383,2]
[377866653,1754586637503,-500.0,0.00018389,2]
[377866654,1754586637512,-500.0,0.00018444,2]
[377866655,1754586637521,-210.29,0.00018451,2]
[377866656,1754586637529,-188.33,0.00018458,2]
[377866657,1754586637539,-575.0,0.00018498,2]
[377866658,1754586637547,-500.0,0.00018499,2]
[377866659,1754586637557,-577.7609,0.000185,2]
[377866660,1754586637566,-1346.78725775,0.000185,2]
[377866661,1754586637575,-400.0,0.000185,6]
[377866662,1754586637585,-3927.0,0.00018551,2]
[377866663,1754586637595,-500.0,0.00018554,2]
[377866669,1754586637855,-1087.65,0.000186,2]
[377866670,1754586637885,-165.55,0.000186,2]
[377866672,1754586637895,-165.55,0.000186,2]
[377866674,1754586637905,-800.0,0.000186,6]
[377866675,1754586637915,-600.0,0.00018607,2]
[377866676,1754586637927,-293.28574579,0.00018607,2]
[377866677,1754586637937,-500.0,0.00018609,2]
[377866678,1754586637947,-160.43,0.00018613,2]
[377866679,1754586637956,-5888.0,0.00018628,2]
[377866680,1754586637966,-403.3,0.0001863,2]
[377866681,1754586637975,-3927.0,0.0001866,2]
[377866682,1754586637986,-1200.0,0.000187,6]
[377866683,1754586637996,-778.95389594,0.000187,2]
[377866684,1754586638006,-155.78,0.00018726,2]